[Event "*** Titled Tuesday Blitz"]
[Site "Chess.com"]
[Date "2020.10.20"]
[Round "5"]
[White "Beca95"]
[Black "Ermito2020"]
[Result "1-0"]
[WhiteElo "2892"]
[BlackElo "2639"]
[TimeControl "180+1"]
[EndTime "10:57:14 PDT"]
[Termination "Beca95 won by resignation"]

1. c4 {[%clk 0:03:00.9]} 1... e6 {[%clk 0:02:58.8]} 2. Nc3 {[%clk 0:02:59.7]}
2... f5 {[%clk 0:02:58.3]} 3. d3 {[%clk 0:02:59.2]} 3... Nf6 {[%clk 0:02:57.9]}
4. e4 {[%clk 0:02:59.8]} 4... d6 {[%clk 0:02:43.7]} 5. exf5 {[%clk 0:02:52.9]}
5... exf5 {[%clk 0:02:36.8]} 6. Bf4 {[%clk 0:02:49.5]} 6... Be7 {[%clk
0:02:34.4]} 7. h3 {[%clk 0:02:47.5]} 7... O-O {[%clk 0:02:33.7]} 8. Nf3 {[%clk
0:02:47.7]} 8... Nc6 {[%clk 0:02:23.3]} 9. Be2 {[%clk 0:02:47.3]} 9... h6 {[%clk
0:02:11.5]} 10. a3 {[%clk 0:02:46.5]} 10... Be6 {[%clk 0:02:05]} 11. Bh2 {[%clk
0:02:45.7]} 11... d5 {[%clk 0:02:01]} 12. Nb5 {[%clk 0:02:43.4]} 12... Rc8
{[%clk 0:01:56.3]} 13. b4 {[%clk 0:02:37.9]} 13... a6 {[%clk 0:01:54]} 14. Nbd4
{[%clk 0:02:37.5]} 14... Nxd4 {[%clk 0:01:52.9]} 15. Nxd4 {[%clk 0:02:38.4]}
15... Bd7 {[%clk 0:01:51.4]} 16. c5 {[%clk 0:02:38.5]} 16... Nh7 {[%clk
0:01:42.3]} 17. Nf3 {[%clk 0:02:25.3]} 17... b6 {[%clk 0:01:37.6]} 18. Rc1
{[%clk 0:02:21.5]} 18... bxc5 {[%clk 0:01:37.2]} 19. bxc5 {[%clk 0:02:22.4]}
19... Bb5 {[%clk 0:01:36.5]} 20. O-O {[%clk 0:02:21.5]} 20... Ng5 {[%clk
0:01:28.8]} 21. Nd4 {[%clk 0:02:20.2]} 21... Bf6 {[%clk 0:01:25.1]} 22. Nxb5
{[%clk 0:02:06.4]} 22... axb5 {[%clk 0:01:25.5]} 23. c6 {[%clk 0:02:07.1]} 23...
Bb2 {[%clk 0:01:13.7]} 24. Rb1 {[%clk 0:02:05.5]} 24... Bxa3 {[%clk 0:01:13.8]}
25. Rxb5 {[%clk 0:01:58.6]} 25... f4 {[%clk 0:00:53.9]} 26. Qb3 {[%clk
0:01:57.4]} 26... Bd6 {[%clk 0:00:54.4]} 27. Rxd5 {[%clk 0:01:56.2]} 27... Kh8
{[%clk 0:00:52.8]} 28. Bg4 {[%clk 0:01:55.6]} 28... Rb8 {[%clk 0:00:52.8]} 29.
Qc4 {[%clk 0:01:50.9]} 29... Qf6 {[%clk 0:00:51.7]} 30. Rf5 {[%clk 0:01:47.1]}
30... Qe7 {[%clk 0:00:49.1]} 31. Bxf4 {[%clk 0:01:43.3]} 31... Rxf5 {[%clk
0:00:40.8]} 32. Bxd6 {[%clk 0:01:42.8]} 32... Qxd6 {[%clk 0:00:37]} 33. Bxf5
{[%clk 0:01:42.9]} 33... Rb4 {[%clk 0:00:33.7]} 34. Qc3 {[%clk 0:01:43]} 34...
Rf4 {[%clk 0:00:30.8]} 35. Bd7 {[%clk 0:01:42]} 35... Rf8 {[%clk 0:00:21.1]} 36.
d4 {[%clk 0:01:34.7]} 36... Qg6 {[%clk 0:00:18.4]} 37. Qg3 {[%clk 0:01:32.3]}
37... Qe4 {[%clk 0:00:15.5]} 38. h4 {[%clk 0:01:27]} 38... Nh7 {[%clk
0:00:10.2]} 39. Qxc7 {[%clk 0:01:18.6]} 39... Qxd4 {[%clk 0:00:10.3]} 40. Qg3
{[%clk 0:01:18.1]} 40... Nf6 {[%clk 0:00:08.3]} 41. Bh3 {[%clk 0:01:17.9]} 41...
Qc5 {[%clk 0:00:08.4]} 42. c7 {[%clk 0:01:16.4]} 42... Nd5 {[%clk 0:00:04.8]}
43. c8=Q {[%clk 0:01:12.4]} 43... Rxc8 {[%clk 0:00:05.3]} 44. Bxc8 {[%clk
0:01:12.1]} 44... Qxc8 {[%clk 0:00:06.2]} 45. Rd1 {[%clk 0:01:10.8]} 45... Nf6
{[%clk 0:00:06.8]} 46. f3 {[%clk 0:01:09.4]} 46... Qc5+ {[%clk 0:00:06.2]} 47.
Kh2 {[%clk 0:01:09.3]} 47... Kh7 {[%clk 0:00:07.1]} 48. Qf4 {[%clk 0:01:09]}
48... Qc2 {[%clk 0:00:06.7]} 49. Rd6 {[%clk 0:01:06.8]} 49... Qc3 {[%clk
0:00:05.7]} 50. Qf5+ {[%clk 0:01:05.9]} 50... Kg8 {[%clk 0:00:06.1]} 51. Rd8+
{[%clk 0:00:57.5]} 51... Kf7 {[%clk 0:00:06.2]} 52. Rd7+ {[%clk 0:00:57.9]}
52... Kg8 {[%clk 0:00:05.5]} 53. Rb7 {[%clk 0:00:57]} 53... Kh8 {[%clk 0:00:04]}
54. Qg6 {[%clk 0:00:54.3]} 54... Nd5 {[%clk 0:00:03]} 1-0

[Event "*** Titled Tuesday Blitz"]
[Site "Chess.com"]
[Date "2020.10.20"]
[Round "5"]
[White "szachuspl"]
[Black "CM_rui"]
[Result "1-0"]
[WhiteElo "2528"]
[BlackElo "2364"]
[TimeControl "180+1"]
[EndTime "10:57:15 PDT"]
[Termination "szachuspl won by resignation"]

1. d4 {[%clk 0:03:00.9]} 1... Nf6 {[%clk 0:02:59.8]} 2. c4 {[%clk 0:03:00.9]}
2... e6 {[%clk 0:03:00.7]} 3. Nf3 {[%clk 0:03:00.9]} 3... Bb4+ {[%clk
0:02:59.4]} 4. Nbd2 {[%clk 0:03:00.7]} 4... O-O {[%clk 0:02:58.1]} 5. g3 {[%clk
0:03:00.7]} 5... d6 {[%clk 0:02:57.1]} 6. Bg2 {[%clk 0:03:00.6]} 6... Nbd7
{[%clk 0:02:56.4]} 7. O-O {[%clk 0:03:00.7]} 7... e5 {[%clk 0:02:56.6]} 8. Nb3
{[%clk 0:02:57.7]} 8... exd4 {[%clk 0:02:47.9]} 9. Nfxd4 {[%clk 0:02:52.9]} 9...
Nc5 {[%clk 0:02:37.9]} 10. a3 {[%clk 0:02:49.4]} 10... Nxb3 {[%clk 0:02:37.4]}
11. Nxb3 {[%clk 0:02:49.3]} 11... Bc5 {[%clk 0:02:34.9]} 12. Nxc5 {[%clk
0:02:49.5]} 12... dxc5 {[%clk 0:02:35.8]} 13. Qxd8 {[%clk 0:02:49.4]} 13... Rxd8
{[%clk 0:02:36.7]} 14. Be3 {[%clk 0:02:49.6]} 14... Be6 {[%clk 0:02:34.2]} 15.
b3 {[%clk 0:02:44.5]} 15... c6 {[%clk 0:02:12.9]} 16. Bxc5 {[%clk 0:02:39.4]}
16... Rd2 {[%clk 0:02:11.6]} 17. Bf3 {[%clk 0:02:37.8]} 17... Ng4 {[%clk
0:01:53.1]} 18. Rfd1 {[%clk 0:02:32.7]} 18... Rad8 {[%clk 0:01:47.8]} 19. Rxd2
{[%clk 0:02:30.4]} 19... Rxd2 {[%clk 0:01:48.7]} 20. Bxa7 {[%clk 0:02:30.6]}
20... Ne5 {[%clk 0:01:49.1]} 21. Be3 {[%clk 0:02:23.9]} 21... Nxf3+ {[%clk
0:01:44.8]} 22. exf3 {[%clk 0:02:23.7]} 22... Rb2 {[%clk 0:01:45.5]} 23. Rd1
{[%clk 0:02:18.5]} 23... f6 {[%clk 0:01:40.9]} 24. Rd3 {[%clk 0:02:13]} 24...
Bh3 {[%clk 0:01:31]} 25. Bc1 {[%clk 0:02:08.7]} 25... Rb1 {[%clk 0:01:18]} 26.
Rc3 {[%clk 0:02:08.6]} 26... c5 {[%clk 0:01:16]} 27. f4 {[%clk 0:02:08.7]} 27...
Kf7 {[%clk 0:01:08.5]} 28. f3 {[%clk 0:02:09]} 28... Ra1 {[%clk 0:01:01.3]} 29.
g4 {[%clk 0:01:58.9]} 29... Ra2 {[%clk 0:00:59.4]} 30. Be3 {[%clk 0:01:14.1]}
30... Rxa3 {[%clk 0:00:38]} 31. Kf2 {[%clk 0:01:11.3]} 31... Ra2+ {[%clk
0:00:37.7]} 32. Ke1 {[%clk 0:01:02.4]} 32... b6 {[%clk 0:00:30]} 33. f5 {[%clk
0:00:59.2]} 33... Rxh2 {[%clk 0:00:28.2]} 34. Bf4 {[%clk 0:00:59.2]} 34... Rb2
{[%clk 0:00:26.2]} 35. Bc7 {[%clk 0:00:58.5]} 35... h5 {[%clk 0:00:22.4]} 36.
gxh5 {[%clk 0:00:56.4]} 36... Bxf5 {[%clk 0:00:23.3]} 37. Bxb6 {[%clk
0:00:56.1]} 37... Ke6 {[%clk 0:00:20.4]} 38. Bxc5 {[%clk 0:00:56.1]} 38... Ke5
{[%clk 0:00:20.5]} 39. Be3 {[%clk 0:00:55.4]} 39... Bh3 {[%clk 0:00:18.6]} 40.
c5 {[%clk 0:00:54.5]} 40... Bc8 {[%clk 0:00:14.3]} 41. c6 {[%clk 0:00:54.5]}
41... Kf5 {[%clk 0:00:11.9]} 42. c7 {[%clk 0:00:53.6]} 42... Ke6 {[%clk
0:00:10.1]} 43. Kd1 {[%clk 0:00:53.4]} 43... Kd5 {[%clk 0:00:08.5]} 44. Kc1
{[%clk 0:00:53.5]} 44... Re2 {[%clk 0:00:08.1]} 45. b4 {[%clk 0:00:52.1]} 45...
Rh2 {[%clk 0:00:07.1]} 46. Bd2 {[%clk 0:00:49.3]} 46... Rxh5 {[%clk 0:00:07.1]}
47. Rc5+ {[%clk 0:00:49.1]} 47... Kd6 {[%clk 0:00:07.5]} 48. Rxh5 {[%clk
0:00:48.8]} 48... Kxc7 {[%clk 0:00:08.4]} 49. Rh7 {[%clk 0:00:48.6]} 49... Kb6
{[%clk 0:00:08.2]} 50. Rxg7 {[%clk 0:00:49.5]} 50... Kb5 {[%clk 0:00:09.1]} 51.
Rf7 {[%clk 0:00:48.7]} 51... f5 {[%clk 0:00:09.3]} 52. Rc7 {[%clk 0:00:48]}
52... Be6 {[%clk 0:00:09.7]} 53. Rc5+ {[%clk 0:00:48.1]} 53... Ka4 {[%clk
0:00:09.8]} 54. Kb2 {[%clk 0:00:48.6]} 1-0

[Event "*** Titled Tuesday Blitz"]
[Site "Chess.com"]
[Date "2020.10.20"]
[Round "5"]
[White "MITerryble"]
[Black "Buffy7"]
[Result "1-0"]
[WhiteElo "2893"]
[BlackElo "2656"]
[TimeControl "180+1"]
[EndTime "10:57:17 PDT"]
[Termination "MITerryble won by resignation"]

1. d4 {[%clk 0:03:00.9]} 1... d5 {[%clk 0:02:59]} 2. Nf3 {[%clk 0:02:58.5]} 2...
e6 {[%clk 0:02:57.6]} 3. c4 {[%clk 0:02:58.6]} 3... a6 {[%clk 0:02:57.4]} 4. e3
{[%clk 0:02:58.5]} 4... Nf6 {[%clk 0:02:56.1]} 5. b3 {[%clk 0:02:57.4]} 5... b6
{[%clk 0:02:51.2]} 6. Bd3 {[%clk 0:02:56.7]} 6... Bb7 {[%clk 0:02:50.6]} 7. Bb2
{[%clk 0:02:55.9]} 7... Bd6 {[%clk 0:02:50.4]} 8. O-O {[%clk 0:02:55.6]} 8...
O-O {[%clk 0:02:50.5]} 9. Nc3 {[%clk 0:02:40.5]} 9... Nbd7 {[%clk 0:02:41]} 10.
Rc1 {[%clk 0:02:37.3]} 10... Qe7 {[%clk 0:02:33.8]} 11. cxd5 {[%clk 0:02:11.7]}
11... exd5 {[%clk 0:02:34.7]} 12. Bf5 {[%clk 0:02:06.4]} 12... Rfe8 {[%clk
0:02:24.1]} 13. Ne2 {[%clk 0:01:44.8]} 13... Ne4 {[%clk 0:01:39.8]} 14. Ng3
{[%clk 0:01:30.5]} 14... Nxg3 {[%clk 0:01:12.6]} 15. hxg3 {[%clk 0:01:30.3]}
15... g6 {[%clk 0:01:04.4]} 16. Bh3 {[%clk 0:00:57.7]} 16... f5 {[%clk
0:00:44.3]} 17. g4 {[%clk 0:00:58]} 17... f4 {[%clk 0:00:44.4]} 18. Re1 {[%clk
0:00:47.7]} 18... Qf7 {[%clk 0:00:27.9]} 19. g5 {[%clk 0:00:46.3]} 19... fxe3
{[%clk 0:00:22.2]} 20. Rxe3 {[%clk 0:00:44.4]} 20... Rxe3 {[%clk 0:00:22.1]} 21.
fxe3 {[%clk 0:00:45.3]} 21... Re8 {[%clk 0:00:20.4]} 22. Qd3 {[%clk 0:00:44.7]}
22... Nf8 {[%clk 0:00:11.4]} 23. Rf1 {[%clk 0:00:39]} 23... Qe7 {[%clk
0:00:10.9]} 24. Ne5 {[%clk 0:00:38.8]} 24... Qxg5 {[%clk 0:00:05.5]} 25. Qe2
{[%clk 0:00:38]} 25... Bc8 {[%clk 0:00:02.8]} 26. Qf3 {[%clk 0:00:36.7]} 26...
Qe7 {[%clk 0:00:02.7]} 27. Qxd5+ {[%clk 0:00:36.2]} 27... Be6 {[%clk 0:00:01.8]}
28. Bxe6+ {[%clk 0:00:08.5]} 28... Qxe6 {[%clk 0:00:02.7]} 29. Qxe6+ {[%clk
0:00:06.1]} 29... Rxe6 {[%clk 0:00:02.4]} 30. Ng4 {[%clk 0:00:06.7]} 30... Re4
{[%clk 0:00:02.3]} 31. Nf6+ {[%clk 0:00:06.4]} 31... Kg7 {[%clk 0:00:02.9]} 32.
Nxe4 {[%clk 0:00:07.3]} 32... Ne6 {[%clk 0:00:03.3]} 33. d5+ {[%clk 0:00:07.6]}
1-0

[Event "*** Titled Tuesday Blitz"]
[Site "Chess.com"]
[Date "2020.10.20"]
[Round "5"]
[White "AniJak"]
[Black "BlackBoarder"]
[Result "1-0"]
[WhiteElo "2406"]
[BlackElo "2584"]
[TimeControl "180+1"]
[EndTime "10:57:17 PDT"]
[Termination "AniJak won on time"]

1. e4 {[%clk 0:02:45.8]} 1... e6 {[%clk 0:02:58.2]} 2. d4 {[%clk 0:02:45.4]}
2... d5 {[%clk 0:02:56.5]} 3. Nd2 {[%clk 0:02:46.3]} 3... c5 {[%clk 0:02:52.8]}
4. exd5 {[%clk 0:02:45.7]} 4... Qxd5 {[%clk 0:02:52.7]} 5. Ngf3 {[%clk
0:02:45.8]} 5... cxd4 {[%clk 0:02:52.7]} 6. Bc4 {[%clk 0:02:45.7]} 6... Qd6
{[%clk 0:02:52.9]} 7. O-O {[%clk 0:02:45.4]} 7... Nf6 {[%clk 0:02:52.9]} 8. Nb3
{[%clk 0:02:45.4]} 8... Nc6 {[%clk 0:02:53.4]} 9. Nfxd4 {[%clk 0:02:44.9]} 9...
Nxd4 {[%clk 0:02:54.3]} 10. Nxd4 {[%clk 0:02:44.7]} 10... a6 {[%clk 0:02:53.9]}
11. c3 {[%clk 0:02:44.2]} 11... Qc7 {[%clk 0:02:52.7]} 12. Bb3 {[%clk
0:02:44.3]} 12... Bd6 {[%clk 0:02:52.1]} 13. h3 {[%clk 0:02:44.4]} 13... O-O
{[%clk 0:02:50.6]} 14. Bg5 {[%clk 0:02:44.8]} 14... Bd7 {[%clk 0:02:17.3]} 15.
Qf3 {[%clk 0:02:32.9]} 15... Be5 {[%clk 0:02:14.3]} 16. Rad1 {[%clk 0:02:25.4]}
16... Rad8 {[%clk 0:02:10.2]} 17. Rfe1 {[%clk 0:02:13.7]} 17... h6 {[%clk
0:02:08.9]} 18. Bh4 {[%clk 0:02:11.1]} 18... b5 {[%clk 0:01:21.8]} 19. Qe3
{[%clk 0:02:10.8]} 19... Bf4 {[%clk 0:01:15.8]} 20. Qf3 {[%clk 0:01:55.8]} 20...
e5 {[%clk 0:01:14.5]} 21. Bxf6 {[%clk 0:01:47.4]} 21... gxf6 {[%clk 0:01:13.4]}
22. Ne2 {[%clk 0:01:47.4]} 22... Bg5 {[%clk 0:01:06.2]} 23. Ng3 {[%clk
0:01:39.5]} 23... Bc6 {[%clk 0:01:01.2]} 24. Qf5 {[%clk 0:01:39.3]} 24... Qc8
{[%clk 0:00:52.2]} 25. Qg6+ {[%clk 0:01:28.9]} 25... Kh8 {[%clk 0:00:50]} 26.
Bxf7 {[%clk 0:01:28.7]} 26... Rxd1 {[%clk 0:00:36]} 27. Rxd1 {[%clk 0:01:28.4]}
27... Qb7 {[%clk 0:00:36.6]} 28. Be6 {[%clk 0:01:16.4]} 28... Qe7 {[%clk
0:00:19.4]} 29. Bb3 {[%clk 0:01:09.9]} 29... Qh7 {[%clk 0:00:08.8]} 30. Qxh7+
{[%clk 0:01:04.7]} 30... Kxh7 {[%clk 0:00:09.1]} 31. Bc2+ {[%clk 0:01:04.9]}
31... Kg7 {[%clk 0:00:08.7]} 32. Rd6 {[%clk 0:01:04.9]} 32... Rc8 {[%clk
0:00:08.2]} 33. Nf5+ {[%clk 0:00:57.7]} 33... Kf7 {[%clk 0:00:08.4]} 34. Bb3+
{[%clk 0:00:56.7]} 34... Ke8 {[%clk 0:00:07.1]} 35. g3 {[%clk 0:00:39.6]} 35...
Be4 {[%clk 0:00:02.8]} 36. Ng7+ {[%clk 0:00:34.9]} 36... Ke7 {[%clk 0:00:02.6]}
37. Re6+ {[%clk 0:00:34.7]} 37... Kf8 {[%clk 0:00:02.6]} 38. Nh5 {[%clk
0:00:30]} 38... a5 {[%clk 0:00:03]} 39. Nxf6 {[%clk 0:00:28.8]} 39... Bf3 {[%clk
0:00:02.1]} 40. Nd7+ {[%clk 0:00:27.1]} 40... Kg7 {[%clk 0:00:01.8]} 41. Nxe5
{[%clk 0:00:25.9]} 1-0

[Event "*** Titled Tuesday Blitz"]
[Site "Chess.com"]
[Date "2020.10.20"]
[Round "5"]
[White "Das_Virus_2020"]
[Black "Belka1989"]
[Result "1-0"]
[WhiteElo "2428"]
[BlackElo "2284"]
[TimeControl "180+1"]
[EndTime "10:57:18 PDT"]
[Termination "Das_Virus_2020 won by checkmate"]

1. e4 {[%clk 0:03:00.9]} 1... c5 {[%clk 0:02:58.8]} 2. c3 {[%clk 0:03:00.6]}
2... d6 {[%clk 0:02:58.2]} 3. d4 {[%clk 0:03:00.2]} 3... Nf6 {[%clk 0:02:58.5]}
4. Bd3 {[%clk 0:02:59.4]} 4... Nc6 {[%clk 0:02:57.9]} 5. Ne2 {[%clk 0:02:55.9]}
5... e5 {[%clk 0:02:57.1]} 6. dxc5 {[%clk 0:02:46.2]} 6... d5 {[%clk 0:02:49.9]}
7. b4 {[%clk 0:02:39.5]} 7... dxe4 {[%clk 0:02:46.5]} 8. Bc2 {[%clk 0:02:39.6]}
8... Qc7 {[%clk 0:02:28.4]} 9. O-O {[%clk 0:02:36.3]} 9... Bg4 {[%clk
0:02:28.1]} 10. Qe1 {[%clk 0:02:33]} 10... a5 {[%clk 0:02:14.6]} 11. Ng3 {[%clk
0:02:04.6]} 11... axb4 {[%clk 0:02:13.9]} 12. cxb4 {[%clk 0:02:02.5]} 12... Nd4
{[%clk 0:02:13.7]} 13. Bxe4 {[%clk 0:01:53.1]} 13... Nb3 {[%clk 0:01:40.9]} 14.
axb3 {[%clk 0:01:52]} 14... Rxa1 {[%clk 0:01:41.8]} 15. Nc3 {[%clk 0:01:49.2]}
15... Be7 {[%clk 0:01:37.6]} 16. Qe3 {[%clk 0:00:55.9]} 16... O-O {[%clk
0:01:32.8]} 17. Nf5 {[%clk 0:00:46.8]} 17... Bxf5 {[%clk 0:01:30.9]} 18. Bxf5
{[%clk 0:00:47]} 18... Rd8 {[%clk 0:01:27]} 19. h3 {[%clk 0:00:42.3]} 19... h6
{[%clk 0:01:11.7]} 20. Bd3 {[%clk 0:00:33]} 20... Nh5 {[%clk 0:00:59]} 21. Qe4
{[%clk 0:00:20.7]} 21... Nf6 {[%clk 0:00:46]} 22. Qe3 {[%clk 0:00:19.7]} 22...
Nh5 {[%clk 0:00:38.6]} 23. Bc4 {[%clk 0:00:19.5]} 23... Bg5 {[%clk 0:00:34.1]}
24. Qf3 {[%clk 0:00:12.3]} 24... Nf4 {[%clk 0:00:31.3]} 25. Bxf4 {[%clk
0:00:08.8]} 25... Rxf1+ {[%clk 0:00:31.9]} 26. Bxf1 {[%clk 0:00:07.3]} 26...
Bxf4 {[%clk 0:00:32.6]} 27. Bc4 {[%clk 0:00:06.3]} 27... Rd2 {[%clk 0:00:17.8]}
28. g3 {[%clk 0:00:05.9]} 28... Bg5 {[%clk 0:00:15.5]} 29. Ne4 {[%clk
0:00:05.8]} 29... Rb2 {[%clk 0:00:13]} 30. Nd6 {[%clk 0:00:05.6]} 30... Bf6
{[%clk 0:00:10.7]} 31. Bxf7+ {[%clk 0:00:05.3]} 31... Kh8 {[%clk 0:00:09.8]} 32.
Qf5 {[%clk 0:00:05.1]} 32... Qd8 {[%clk 0:00:07.2]} 33. Bd5 {[%clk 0:00:04.7]}
33... Qe7 {[%clk 0:00:06.2]} 34. Be4 {[%clk 0:00:04.6]} 34... Kg8 {[%clk
0:00:05.8]} 35. Qh7+ {[%clk 0:00:04.3]} 35... Kf8 {[%clk 0:00:06.7]} 36. Qh8#
{[%clk 0:00:04.8]} 1-0

[Event "*** Titled Tuesday Blitz"]
[Site "Chess.com"]
[Date "2020.10.20"]
[Round "5"]
[White "ciucas1892"]
[Black "lacafi"]
[Result "1-0"]
[WhiteElo "2344"]
[BlackElo "2129"]
[TimeControl "180+1"]
[EndTime "10:57:18 PDT"]
[Termination "ciucas1892 won by resignation"]

1. c4 {[%clk 0:03:00.9]} 1... f5 {[%clk 0:02:59.4]} 2. g3 {[%clk 0:02:58.6]}
2... Nf6 {[%clk 0:02:59.9]} 3. Bg2 {[%clk 0:02:56.5]} 3... g6 {[%clk 0:03:00.5]}
4. d4 {[%clk 0:02:56.2]} 4... Bg7 {[%clk 0:03:01]} 5. h4 {[%clk 0:02:55.4]} 5...
c6 {[%clk 0:02:58.5]} 6. Nh3 {[%clk 0:02:48.6]} 6... d5 {[%clk 0:02:58.7]} 7.
cxd5 {[%clk 0:02:47.8]} 7... cxd5 {[%clk 0:02:58.4]} 8. Nf4 {[%clk 0:02:48]}
8... e6 {[%clk 0:02:50.8]} 9. h5 {[%clk 0:02:46.2]} 9... g5 {[%clk 0:02:50]} 10.
h6 {[%clk 0:02:45]} 10... Bf8 {[%clk 0:02:40.4]} 11. Nd3 {[%clk 0:02:33.8]}
11... g4 {[%clk 0:02:19.4]} 12. Nc3 {[%clk 0:02:31.6]} 12... Nc6 {[%clk
0:02:18.1]} 13. Nf4 {[%clk 0:02:27.7]} 13... Bd6 {[%clk 0:02:10.9]} 14. O-O
{[%clk 0:02:16.2]} 14... Bf8 {[%clk 0:01:54.7]} 15. Be3 {[%clk 0:01:46.2]} 15...
Bxh6 {[%clk 0:01:29.4]} 16. Nxe6 {[%clk 0:01:43.9]} 16... Bxe6 {[%clk
0:01:27.3]} 17. Bxh6 {[%clk 0:01:44.4]} 17... Qe7 {[%clk 0:01:19.9]} 18. Bg5
{[%clk 0:01:35.3]} 18... Rd8 {[%clk 0:01:14.1]} 19. Rc1 {[%clk 0:01:31.2]} 19...
O-O {[%clk 0:01:13.4]} 20. Qd2 {[%clk 0:01:30.2]} 20... Qf7 {[%clk 0:01:05.2]}
21. a3 {[%clk 0:01:20.8]} 21... Rd7 {[%clk 0:01:05]} 22. b4 {[%clk 0:01:19]}
22... Ne4 {[%clk 0:01:02]} 23. Nxe4 {[%clk 0:01:16.8]} 23... fxe4 {[%clk
0:01:01.7]} 24. b5 {[%clk 0:01:10.5]} 24... Ne7 {[%clk 0:00:54.1]} 25. Bh6
{[%clk 0:01:08.9]} 25... Re8 {[%clk 0:00:52.6]} 26. Qg5+ {[%clk 0:01:03]} 26...
Ng6 {[%clk 0:00:51.9]} 27. Rc5 {[%clk 0:00:54.7]} 27... Qf5 {[%clk 0:00:32.6]}
28. Rfc1 {[%clk 0:00:53.5]} 28... Qxg5 {[%clk 0:00:22.3]} 29. Bxg5 {[%clk
0:00:54.4]} 29... Kf7 {[%clk 0:00:21.3]} 30. a4 {[%clk 0:00:50.2]} 30... Ne7
{[%clk 0:00:18.6]} 31. e3 {[%clk 0:00:46.5]} 31... Nf5 {[%clk 0:00:18.1]} 32.
Bf1 {[%clk 0:00:46.1]} 32... Nd6 {[%clk 0:00:17.9]} 33. Bf4 {[%clk 0:00:44.9]}
33... Nc4 {[%clk 0:00:17.5]} 34. a5 {[%clk 0:00:20.2]} 34... h5 {[%clk
0:00:15.7]} 35. a6 {[%clk 0:00:18.5]} 35... bxa6 {[%clk 0:00:15.3]} 36. bxa6
{[%clk 0:00:19.4]} 36... Ree7 {[%clk 0:00:11.5]} 37. Bxc4 {[%clk 0:00:19.5]}
37... dxc4 {[%clk 0:00:11.5]} 38. Rxh5 {[%clk 0:00:20.2]} 38... Kg6 {[%clk
0:00:09.7]} 39. Rh6+ {[%clk 0:00:19.7]} 39... Kf7 {[%clk 0:00:09.7]} 40. Kg2
{[%clk 0:00:20.1]} 40... Bd5 {[%clk 0:00:09.2]} 41. Rch1 {[%clk 0:00:20]} 41...
Re6 {[%clk 0:00:09]} 42. Rh7+ {[%clk 0:00:20.3]} 42... Ke8 {[%clk 0:00:07.6]}
43. Rh8+ {[%clk 0:00:20.7]} 43... Ke7 {[%clk 0:00:08.1]} 44. R1h7+ {[%clk
0:00:21]} 1-0

[Event "*** Titled Tuesday Blitz"]
[Site "Chess.com"]
[Date "2020.10.20"]
[Round "5"]
[White "BanjoKazooieN64"]
[Black "FMJoseHerrera"]
[Result "0-1"]
[WhiteElo "2377"]
[BlackElo "2540"]
[TimeControl "180+1"]
[EndTime "10:57:19 PDT"]
[Termination "FMJoseHerrera won by checkmate"]

1. e4 {[%clk 0:03:00.9]} 1... c5 {[%clk 0:02:30]} 2. Nc3 {[%clk 0:03:00.5]} 2...
e6 {[%clk 0:02:29.7]} 3. Nf3 {[%clk 0:03:00.6]} 3... a6 {[%clk 0:02:29.3]} 4. d4
{[%clk 0:03:00.9]} 4... cxd4 {[%clk 0:02:30.2]} 5. Nxd4 {[%clk 0:03:01.3]} 5...
Qc7 {[%clk 0:02:30.9]} 6. f4 {[%clk 0:03:01]} 6... b5 {[%clk 0:02:31]} 7. a3
{[%clk 0:03:00.1]} 7... Bb7 {[%clk 0:02:31.4]} 8. Bd3 {[%clk 0:03:00]} 8... Nf6
{[%clk 0:02:29.2]} 9. Nf3 {[%clk 0:02:58.8]} 9... d6 {[%clk 0:02:28.5]} 10. O-O
{[%clk 0:02:58.5]} 10... Nbd7 {[%clk 0:02:28.7]} 11. Qe1 {[%clk 0:02:58.8]}
11... Be7 {[%clk 0:02:28.4]} 12. b4 {[%clk 0:02:58.9]} 12... Rc8 {[%clk
0:02:27.2]} 13. Bb2 {[%clk 0:02:59.2]} 13... h5 {[%clk 0:02:26.9]} 14. e5 {[%clk
0:02:54.8]} 14... dxe5 {[%clk 0:02:20.8]} 15. fxe5 {[%clk 0:02:55.1]} 15... Ng4
{[%clk 0:02:19.7]} 16. Ne4 {[%clk 0:02:50.3]} 16... Ndxe5 {[%clk 0:02:12.9]} 17.
Nxe5 {[%clk 0:02:18.2]} 17... Nxe5 {[%clk 0:02:13.8]} 18. Qf2 {[%clk 0:02:16.1]}
18... O-O {[%clk 0:01:39.7]} 19. Rae1 {[%clk 0:02:11.1]} 19... Ng4 {[%clk
0:01:36.4]} 20. Qg3 {[%clk 0:02:03]} 20... Qxg3 {[%clk 0:01:14.7]} 21. Nxg3
{[%clk 0:02:01.5]} 21... g6 {[%clk 0:01:13]} 22. Ne4 {[%clk 0:01:32.5]} 22... f5
{[%clk 0:00:53.1]} 23. Nc5 {[%clk 0:01:22.2]} 23... Rxc5 {[%clk 0:00:50.4]} 24.
bxc5 {[%clk 0:01:16.5]} 24... Bxc5+ {[%clk 0:00:51.3]} 25. Kh1 {[%clk
0:01:16.7]} 25... Bd5 {[%clk 0:00:48.4]} 26. h3 {[%clk 0:01:10.3]} 26... Nf2+
{[%clk 0:00:48]} 27. Kh2 {[%clk 0:01:10.6]} 27... Nxd3 {[%clk 0:00:44.8]} 28.
cxd3 {[%clk 0:01:10.3]} 28... Kf7 {[%clk 0:00:36]} 29. Rc1 {[%clk 0:01:10]}
29... Bd6+ {[%clk 0:00:34.7]} 30. Kg1 {[%clk 0:01:07.4]} 30... Rd8 {[%clk
0:00:33.9]} 31. Rc2 {[%clk 0:01:01.2]} 31... Rd7 {[%clk 0:00:30.3]} 32. Rc8
{[%clk 0:00:58.8]} 32... Bb7 {[%clk 0:00:29]} 33. Rh8 {[%clk 0:00:57.8]} 33...
Bc5+ {[%clk 0:00:28.7]} 34. d4 {[%clk 0:00:51.1]} 34... Rxd4 {[%clk 0:00:23.7]}
35. Rh7+ {[%clk 0:00:49.9]} 35... Kg8 {[%clk 0:00:24.2]} 36. Rh8+ {[%clk
0:00:46.4]} 36... Kxh8 {[%clk 0:00:23]} 37. Rc1 {[%clk 0:00:42.2]} 37... Bb6
{[%clk 0:00:20.5]} 38. Re1 {[%clk 0:00:38.5]} 38... Bd5 {[%clk 0:00:19.3]} 39.
Rc1 {[%clk 0:00:38.5]} 39... Kg8 {[%clk 0:00:18.8]} 40. Rc8+ {[%clk 0:00:36.6]}
40... Kf7 {[%clk 0:00:18.7]} 41. Bxd4 {[%clk 0:00:35.3]} 41... Bxd4+ {[%clk
0:00:19.6]} 42. Kh2 {[%clk 0:00:34.7]} 42... Bc4 {[%clk 0:00:20.5]} 43. Rc6
{[%clk 0:00:32.9]} 43... a5 {[%clk 0:00:19.6]} 44. Ra6 {[%clk 0:00:31.8]} 44...
a4 {[%clk 0:00:19.6]} 45. Rc6 {[%clk 0:00:28.4]} 45... e5 {[%clk 0:00:18.3]} 46.
Kg3 {[%clk 0:00:25.1]} 46... g5 {[%clk 0:00:18.6]} 47. Rh6 {[%clk 0:00:21.8]}
47... h4+ {[%clk 0:00:18.5]} 48. Kf3 {[%clk 0:00:21.6]} 48... e4# {[%clk
0:00:19]} 0-1